bitfinex-derivatives/quotes_ETHF0:USTF0_20251223
["timestamp","ask_amount","ask_price","bid_price","bid_amount"]
[1766524528628,10.165,2968.3,2967.2,0.01011688]
[1766524529329,10.165,2968.3,2967.5,0.00505842]
[1766524531418,10.165,2968.3,2966.8,1.262]
[1766524531624,10.165,2968.3,2967.2,0.01011688]
[1766524532031,10.165,2968.3,2967.0,3.37]
[1766524532231,10.165,2968.3,2967.0,3.38011688]
[1766524532632,10.165,2968.3,2967.4,0.00337232]
[1766524533035,10.165,2968.3,2967.0,3.37]
[1766524533225,10.165,2968.3,2967.1,0.01011688]
[1766524535434,40.8,2968.2,2967.1,0.01011688]
[1766524536022,0.92827764,2967.7,2967.1,0.01011688]
[1766524536227,3.371,2967.6,2967.1,0.01011688]
[1766524539536,4.29927764,2967.6,2966.6,1.262]
[1766524539735,4.29927764,2967.6,2966.6,4.633]
[1766524541443,4.29927764,2967.6,2966.2,1.09691764]
[1766524541444,0.92827764,2966.8,2966.2,3.371]
[1766524541638,10.16305842,2966.8,2966.2,3.371]
[1766524547050,10.16305842,2966.8,2966.1,0.00426674]
[1766524547252,0.92827764,2966.7,2966.1,0.00426674]
[1766524551949,10.16305842,2966.8,2966.1,0.00426674]
[1766524553350,0.92827764,2966.7,2965.6,1.14995915]
[1766524553652,0.92827764,2966.5,2965.6,0.98127915]
[1766524553851,10.153,2966.4,2965.6,4.35227915]
[1766524554054,10.153,2966.4,2965.6,5.61427915]
[1766524554445,10.156695,2966.4,2965.6,5.61845307]
[1766524554750,10.156695,2966.4,2965.6,2.24745307]
[1766524559149,0.92827764,2966.3,2965.6,1.26617392]
[1766524559347,0.92827764,2966.3,2965.6,0.00417392]
[1766524560954,0.92827764,2966.1,2965.6,0.00417392]
[1766524561148,4.30027764,2966.1,2965.6,0.00417392]
[1766524563462,3.372,2966.1,2965.6,0.00417392]
[1766524565859,0.92827764,2965.9,2965.1,1.262]
[1766524566046,0.92827764,2965.9,2965.2,3.372]
[1766524566560,6.777,2966.0,2965.2,3.372]
[1766524566863,6.777,2966.0,2965.2,3.37584943]
[1766524569460,6.777,2966.0,2965.2,0.00384943]
[1766524571859,0.92827764,2965.9,2964.6,1.262]
[1766524572160,0.92827764,2965.7,2964.7,4.634]
[1766524572457,3.372,2965.8,2964.7,4.634]
[1766524572958,3.372,2965.8,2964.7,4.63673413]
[1766524574063,8.43705842,2966.8,2965.3,0.92827764]
[1766524574255,3.372,2966.2,2965.4,3.372]
[1766524581356,4.30027764,2966.2,2965.0,1.262]
[1766524581558,0.92827764,2965.8,2965.0,1.262]
[1766524581762,3.372,2965.7,2964.9,3.372]
[1766524582561,3.372,2965.7,2964.7,0.00273413]
[1766524582764,0.92827764,2965.6,2964.8,3.372]
[1766524583162,3.372,2965.7,2964.7,0.00273413]
[1766524583163,0.92827764,2965.4,2964.7,0.00273413]
[1766524583362,3.372,2965.3,2964.7,0.00273413]
[1766524583558,3.37705842,2965.3,2964.7,0.00273413]
[1766524583959,3.37705842,2965.3,2964.3,0.16875]
[1766524584166,0.92827764,2965.2,2964.3,3.373]
[1766524584957,0.92827764,2965.2,2964.3,3.37595405]
[1766524585162,0.92827764,2965.2,2964.3,0.00295405]
[1766524585562,0.92827764,2965.2,2964.3,3.37595405]
[1766524585961,0.92827764,2965.2,2964.3,0.00295405]
[1766524586563,0.92827764,2965.0,2964.3,0.00295405]
[1766524586764,3.373,2964.9,2964.2,3.373]
[1766524587368,0.92827764,2964.8,2963.6,1.09706764]
[1766524587566,0.92827764,2964.8,2963.7,3.373]
[1766524587759,0.92827764,2964.8,2963.7,3.37723799]
[1766524588370,0.92827764,2964.6,2963.7,3.37723799]
[1766524588569,3.373,2964.5,2963.7,3.37723799]
[1766524589972,3.373,2964.5,2963.7,0.00423799]
[1766524590271,3.373,2964.5,2963.8,3.373]
[1766524595890,0.92827764,2965.7,2964.4,0.92827764]
[1766524596091,3.37905842,2965.3,2964.6,0.92827764]
[1766524596387,3.37905842,2965.3,2964.6,4.30227764]
[1766524596682,3.374,2965.8,2965.0,0.92827764]
[1766524596888,8.389,2966.1,2965.1,3.374]
[1766524597094,8.389,2966.1,2965.2,0.92827764]
[1766524597686,0.00505842,2965.9,2965.4,0.00505842]
[1766524597887,0.00505842,2965.9,2965.4,3.37905842]
[1766524598080,8.389,2966.1,2963.8,0.92905128]
[1766524598283,8.389,2966.1,2964.3,12.537]
[1766524598482,8.389,2966.1,2964.4,11.809]
[1766524599285,0.00505842,2965.5,2965.0,0.00505842]
[1766524599485,0.00505842,2965.5,2965.0,3.37805842]
[1766524605390,0.00505842,2965.5,2965.0,0.00505842]
[1766524605692,0.00505842,2965.5,2965.1,3.373]
[1766524610591,3.373,2965.8,2965.0,0.00505842]
[1766524611686,0.00505842,2965.7,2965.0,0.00505842]
[1766524612397,3.373,2965.8,2965.0,0.00505842]
[1766524612784,3.373,2965.9,2965.0,0.00505842]
[1766524613392,0.00505842,2965.7,2965.0,0.00505842]
[1766524614398,3.373,2965.9,2965.0,0.00505842]
[1766524615395,0.00505842,2965.7,2965.0,0.00505842]
[1766524621806,0.00505842,2965.7,2965.1,3.373]
[1766524622004,0.00505842,2965.7,2965.0,0.00505842]
[1766524622199,0.00505842,2965.7,2965.0,3.37805842]
[1766524623005,3.373,2965.6,2965.0,3.37805842]
[1766524628913,3.373,2965.6,2965.0,0.00505842]
[1766524631414,3.373,2965.6,2964.8,3.373]
[1766524632314,3.373,2965.6,2964.9,0.00505842]
[1766524635812,3.373,2965.6,2964.6,1.262]
[1766524636013,10.125,2965.6,2964.6,1.262]
[1766524636919,10.125,2965.6,2964.8,0.00505842]
[1766524638519,10.125,2965.6,2964.6,1.262]
[1766524638913,40.8,2965.5,2964.6,1.262]
[1766524639410,40.8,2965.5,2964.8,0.00505842]
[1766524639719,40.8,2965.5,2964.6,1.262]
[1766524640813,40.8,2965.5,2963.5,0.92905128]
[1766524641019,40.8,2965.5,2964.0,3.373]
[1766524642223,40.8,2965.5,2964.0,3.54177]
[1766524653839,10.125,2965.6,2964.0,3.54177]
[1766524658742,0.00505842,2965.7,2964.0,3.54177]
[1766524658942,10.178,2965.6,2964.0,3.54177]
[1766524659940,10.178,2965.6,2964.5,0.9295318]
[1766524660142,10.178,2965.6,2964.6,3.373]
[1766524661444,0.00505842,2965.7,2965.1,0.9295318]
[1766524661743,10.179,2966.0,2965.3,0.9295318]
[1766524662646,0.00505842,2965.9,2965.4,0.00505842]
[1766524662948,10.179,2966.0,2965.4,0.00505842]
[1766524663746,10.18405842,2966.0,2965.4,0.00505842]
[1766524669049,10.18405842,2966.0,2964.9,0.9295318]
[1766524669255,0.9295318,2965.5,2964.9,2.8605]
[1766524669453,6.801,2965.6,2964.9,2.0326]
[1766524670145,6.801,2965.6,2965.0,0.00505842]
[1766524671954,6.801,2965.6,2965.0,3.37805842]
[1766524674553,0.9295318,2965.3,2964.6,2.8605]
[1766524674751,10.189,2965.3,2964.6,1.8355]
[1766524675054,10.189,2965.3,2964.6,1.5201]
[1766524680754,10.189,2965.3,2964.6,1.2047]
[1766524681657,3.373,2965.7,2964.6,4.3025318]
[1766524684656,0.00505842,2966.0,2964.6,3.373]
[1766524684858,0.00505842,2966.0,2965.6,0.9295318]
[1766524685160,0.00505842,2966.0,2964.8,0.16872]
[1766524685161,2.7793472,2966.1,2965.5,3.373]
[1766524686062,2.78440562,2966.1,2965.5,3.37805842]
[1766524687759,2.78440562,2966.1,2965.5,0.00505842]
[1766524687965,2.78440562,2966.1,2965.5,3.37805842]
[1766524692170,0.00505842,2966.1,2965.6,0.9295318]
[1766524692962,3.376695,2966.4,2965.5,3.37805842]
[1766524693160,3.373,2966.7,2966.2,0.9295318]
[1766524693771,3.373,2966.7,2966.1,0.9295318]
[1766524694161,3.373,2967.0,2966.5,0.9295318]
[1766524694366,3.373,2967.4,2966.7,0.9295318]
[1766524694570,3.373,2967.4,2966.7,4.3025318]
[1766524694770,0.9295318,2968.2,2966.9,0.9295318]
[1766524694970,18.627,2968.1,2966.9,0.9295318]
[1766524695371,0.00505842,2967.8,2967.2,0.00505842]
[1766524695572,10.194,2967.7,2967.2,0.00505842]
[1766524697776,0.00505842,2967.8,2967.2,0.00505842]
[1766524698578,0.00505842,2967.8,2967.1,3.372]
[1766524699481,0.00505842,2967.8,2967.2,0.00505842]
[1766524703983,0.00505842,2967.8,2967.5,0.9295318]
[1766524704175,0.00505842,2967.8,2967.5,4.3015318]
[1766524705380,3.37629909,2968.1,2967.5,4.3015318]
[1766524706085,3.37629909,2968.1,2967.5,0.9295318]
[1766524706288,3.38135751,2968.1,2967.6,3.371]
[1766524708190,3.38135751,2968.1,2967.7,0.9295318]
[1766524708588,3.38135751,2968.1,2967.6,4.3005318]
[1766524708889,0.00935751,2968.1,2967.6,4.3005318]
[1766524709874,0.00935751,2968.1,2967.8,0.9295318]
[1766524710091,5.655,2968.3,2967.8,0.9295318]
[1766524710281,3.371,2968.4,2967.9,3.371]
[1766524711186,3.37946418,2968.4,2967.9,3.371]
[1766524713778,10.181,2968.8,2968.0,0.9295318]
[1766524714179,3.371,2968.8,2968.2,0.9295318]
[1766524714382,3.371,2968.8,2968.2,4.3005318]
[1766524714783,6.82,2969.0,2968.4,0.9295318]
[1766524714982,6.82426396,2969.0,2968.4,0.93277411]
[1766524715188,6.82932238,2969.0,2968.4,0.93277411]
[1766524715480,6.82932238,2969.0,2967.7,0.16856]
[1766524715684,6.82932238,2969.0,2968.0,5.253]
[1766524715891,6.82932238,2969.0,2968.1,4.3005318]
[1766524716586,6.82932238,2969.0,2968.1,4.30477268]
[1766524716786,0.00932238,2969.0,2968.5,0.9295318]
[1766524717090,3.371,2969.1,2968.7,0.9295318]
[1766524717287,6.819,2969.3,2968.7,0.9295318]
[1766524717686,3.37,2969.5,2968.7,0.9295318]
[1766524718191,0.00337232,2969.4,2968.8,0.00505842]
[1766524719694,0.00337232,2969.4,2968.8,3.37505842]
[1766524722899,3.37,2969.8,2968.9,0.92691329]
[1766524723090,3.37,2970.0,2968.9,0.92691329]
[1766524723491,3.37,2970.3,2968.9,0.92691329]
[1766524723687,3.37,2970.3,2968.8,3.37505842]
[1766524723896,3.37,2970.3,2968.8,3.54355842]
[1766524724197,0.19622908,2970.8,2968.8,3.54355842]
[1766524724198,3.37,2970.7,2969.6,0.92691329]
[1766524724390,0.19622908,2970.8,2969.7,9.264]
[1766524725087,3.37,2970.7,2969.8,3.37]
[1766524725291,3.37,2970.7,2969.6,3.37]
[1766524725493,3.37,2970.7,2969.5,3.37]
[1766524726092,3.37,2970.7,2968.9,0.16849]
[1766524726294,3.37,2970.7,2969.0,9.263]
[1766524726500,8.424,2970.6,2969.0,9.263]
[1766524726696,6.812,2970.5,2969.0,9.263]
[1766524726892,3.369,2970.4,2969.0,9.263]
[1766524728402,3.369,2970.4,2969.1,9.262]
[1766524728798,3.369,2970.3,2969.1,9.262]
[1766524729398,3.369,2970.3,2968.8,9.35497171]
[1766524729399,3.369,2970.3,2968.8,0.93197171]
[1766524729596,0.19997632,2970.8,2969.6,0.92691329]
[1766524729800,0.19997632,2970.8,2969.7,4.157]
[1766524729801,3.56897632,2970.8,2969.7,4.157]
[1766524730395,0.19997632,2970.8,2970.0,0.92691329]
[1766524730598,3.369,2971.8,2970.4,0.92691329]
[1766524730798,3.369,2971.8,2970.8,0.00504982]
[1766524730999,40.8,2971.7,2970.8,3.37404982]
[1766524731500,40.80380958,2971.7,2970.8,3.3780156]
[1766524732001,40.80380958,2971.7,2970.8,0.0090156]
[1766524735600,40.80380958,2971.7,2968.7,0.92691329]
[1766524735802,8.421,2971.6,2969.5,17.68]
[1766524735997,10.2,2971.5,2969.5,17.68]
[1766524736404,40.8,2971.4,2969.5,17.84846]
[1766524736597,0.00502115,2970.7,2970.2,0.00504982]
[1766524736802,0.00502115,2970.7,2970.2,3.37304982]
[1766524737507,0.00502115,2970.7,2970.1,3.368]
[1766524737701,0.00502115,2970.7,2969.8,0.16844]
[1766524737907,3.368,2970.6,2969.8,3.368]
[1766524738103,10.199,2970.6,2969.5,0.00314009]
[1766524738304,10.199,2970.6,2969.6,3.368]
[1766524738504,10.199,2970.6,2969.8,0.00504982]
[1766524738714,10.199,2970.6,2969.7,3.368]
[1766524739710,10.199,2970.6,2969.9,0.00504982]
[1766524741310,10.199,2970.6,2969.5,0.00314009]
[1766524741506,10.199,2970.6,2969.5,3.37114009]
[1766524742403,10.199,2970.6,2969.8,0.00504982]
[1766524748010,0.00502115,2970.7,2969.8,0.00504982]
[1766524748208,10.193,2970.6,2969.8,0.00504982]
[1766524749907,10.193,2970.6,2969.9,3.368]
[1766524750412,3.368,2970.6,2969.9,3.368]
[1766524752306,3.368,2970.6,2969.8,0.00504982]
[1766524752909,3.368,2970.6,2969.9,3.368]
[1766524753409,3.368,2970.6,2969.8,0.00504982]
[1766524753716,3.368,2970.6,2970.0,3.368]
[1766524753914,3.368,2970.6,2969.8,0.00504982]
[1766524754115,3.368,2970.6,2969.9,3.368]
[1766524761027,40.96835,2971.4,2969.9,3.368]
[1766524761028,3.367,2971.4,2970.0,1.09534329]
[1766524761217,3.367,2971.4,2970.1,0.16842]
[1766524761418,3.367,2971.4,2970.2,17.675]
[1766524761820,0.00504982,2971.1,2970.2,17.675]
[1766524762016,0.00380958,2971.7,2970.4,0.92691329]
[1766524762223,3.37080958,2971.7,2970.5,3.367]
[1766524762422,3.37080958,2971.7,2970.5,3.5354]
[1766524762626,44.17080958,2971.7,2970.5,3.5354]
[1766524762927,3.37080958,2971.7,2970.5,3.5354]
[1766524764026,0.00504982,2971.4,2970.5,3.5354]
[1766524764620,3.367,2972.2,2970.5,3.367]
[1766524765021,40.8,2972.5,2970.9,0.16838]
[1766524765218,3.367,2972.6,2971.0,17.675]
[1766524765730,3.367,2972.6,2971.5,0.00504982]
[1766524765933,3.37034859,2972.6,2971.5,0.00504982]
[1766524766137,0.00334859,2972.6,2971.6,3.367]
[1766524766337,0.00334859,2972.6,2971.6,3.37040822]
[1766524767732,3.367,2973.5,2971.7,1.09524329]
[1766524767935,3.367,2973.5,2971.7,0.16833]
[1766524768135,40.8,2973.4,2971.7,0.16833]
[1766524768730,40.80294773,2973.4,2971.7,0.16833]
[1766524769724,40.80294773,2973.4,2971.8,5.421]
[1766524769931,10.189,2973.3,2971.7,0.16833]
[1766524770228,10.189,2973.3,2971.8,3.366]
[1766524771537,10.189,2973.3,2971.6,0.00340822]
[1766524771726,10.189,2973.3,2971.7,3.366]
[1766524773539,40.80294773,2973.4,2971.7,3.366]
[1766524773837,15.247,2973.2,2971.8,3.366]
[1766524775535,0.16826,2973.0,2971.0,3.366]
[1766524775741,10.206,2972.9,2971.0,3.366]
[1766524775931,40.8,2972.8,2971.0,3.366]
[1766524776533,0.00504982,2972.2,2971.6,0.00504982]
[1766524776733,10.207,2972.1,2971.0,3.36845146]
[1766524777542,10.207,2972.1,2971.0,0.00245146]
[1766524778741,10.207,2972.1,2971.3,0.00504982]
[1766524779541,10.207,2972.1,2970.7,9.252]
[1766524779943,10.207,2972.1,2970.2,0.16842]
[1766524780134,10.207,2972.1,2970.2,3.53442]
[1766524780540,0.00504982,2972.2,2970.9,0.00504982]
[1766524780541,6.839,2972.0,2970.9,0.00504982]
[1766524780738,3.366,2971.9,2970.9,0.00504982]
[1766524781332,3.366,2971.9,2970.2,3.53809739]
[1766524781535,6.839,2972.0,2970.2,3.53809739]
[1766524781536,40.8,2971.8,2970.2,3.36967739]
[1766524781737,3.366,2971.7,2970.2,3.36967739]
[1766524782345,3.366,2971.7,2970.7,0.00504982]
[1766524783539,3.366,2971.7,2970.2,0.00367739]
[1766524784541,3.366,2971.7,2970.7,0.00336658]
[1766524787148,3.366,2971.7,2970.2,0.00367739]
[1766524789845,40.8,2971.8,2970.2,0.00367739]
[1766524790052,18.656,2971.7,2970.2,0.00367739]
[1766524793662,40.8,2971.8,2970.3,3.367]
[1766524793856,10.262,2971.7,2970.3,5.42]
[1766524794752,40.8,2971.8,2970.3,5.42]
[1766524794962,10.264,2971.7,2970.4,8.417]
[1766524796951,10.264,2971.7,2970.4,3.367]
[1766524801754,10.264,2971.7,2970.2,0.00367739]
[1766524803264,0.16832,2971.9,2970.2,0.00367739]
[1766524803455,6.895,2971.6,2970.2,0.00367739]
[1766524803761,47.695,2971.6,2970.2,0.00367739]
[1766524805059,0.16832,2971.9,2970.2,0.00367739]
[1766524805253,3.367,2971.8,2970.5,1.42882865]
[1766524805451,3.367,2971.8,2970.6,3.367]
[1766524805652,3.367,2971.8,2970.7,3.493]
[1766524806057,3.367,2971.8,2971.1,0.92539063]
[1766524806261,0.00504982,2972.2,2971.7,0.92539063]
[1766524806465,4.936,2972.5,2971.7,0.93044045]
[1766524806664,3.367,2972.4,2971.7,0.93044045]
[1766524807365,4.29239063,2972.4,2971.7,0.00504982]
[1766524807662,0.00504982,2972.3,2971.4,3.367]
[1766524807859,0.00504982,2972.3,2970.1,1.09381063]
[1766524807860,0.92539063,2972.1,2970.1,1.09381063]
[1766524808166,10.263,2972.0,2970.6,8.417]
[1766524808364,10.263,2972.0,2970.7,3.366]
[1766524809371,3.366,2972.0,2970.7,3.366]
[1766524809564,0.00504982,2972.3,2970.7,3.366]
[1766524809765,6.024,2972.2,2970.7,3.366]
[1766524810266,6.024,2972.2,2970.8,3.366]
[1766524810763,6.024,2972.2,2970.6,5.887]
[1766524810969,6.024,2972.2,2970.9,3.366]
[1766524811266,6.024,2972.2,2970.7,3.366]
[1766524812661,40.8,2972.1,2970.7,3.366]
[1766524814669,40.8,2972.1,2970.4,3.366]
[1766524817762,18.682,2972.0,2970.4,3.366]
[1766524818468,40.8,2971.9,2970.4,3.366]
[1766524818768,10.267,2971.8,2970.4,3.366]
[1766524819157,0.00504982,2972.3,2970.6,1.42796708]
[1766524819464,6.904,2972.0,2970.3,1.59637708]
[1766524819664,3.366,2971.9,2970.4,3.366]
[1766524819965,3.366,2971.9,2970.4,4.286]
[1766524822363,3.366,2971.9,2970.5,1.42796708]
[1766524824669,3.366,2971.9,2970.6,0.1684]
[1766524824872,3.366,2971.9,2970.7,3.366]
[1766524825467,3.366,2971.9,2970.6,0.1684]
[1766524825676,3.366,2971.9,2970.7,3.622]
[1766524829885,3.366,2972.2,2970.9,1.42796708]
[1766524830082,3.366,2972.2,2971.0,3.366]
[1766524834988,3.366,2972.2,2971.1,3.366]
[1766524835187,3.366,2972.2,2971.2,3.0508]
[1766524836096,0.92551852,2972.1,2971.2,3.0508]
[1766524836295,3.366,2972.2,2971.3,0.92551852]
[1766524836495,3.366,2972.2,2971.5,0.92551852]
[1766524837190,3.366,2972.2,2971.3,0.92551852]
[1766524843898,3.366,2972.2,2971.2,3.0508]
[1766524844297,0.00504982,2972.3,2971.2,3.0508]
[1766524844497,3.37104982,2972.3,2971.2,3.0508]
[1766524849803,3.37104982,2972.3,2971.2,5.885]
[1766524850000,3.37104982,2972.3,2971.3,3.366]
[1766524850802,3.37104982,2972.3,2970.6,8.415]
[1766524851000,3.37104982,2972.3,2970.7,9.251]
[1766524852109,40.8,2972.2,2970.7,9.251]
[1766524854711,40.8,2972.2,2970.7,9.41939]
[1766524855709,40.8,2972.2,2970.7,0.16839]
[1766524855915,40.8,2972.2,2970.8,9.251]
[1766524856113,40.8,2972.2,2970.9,9.251]
[1766524856912,6.901,2972.1,2970.9,9.251]
[1766524857216,3.366,2972.0,2970.9,9.251]
[1766524863715,0.00504982,2972.3,2970.9,9.251]
[1766524863910,3.366,2972.2,2970.9,9.251]
[1766524865617,0.00504982,2972.3,2971.0,0.16837]
[1766524865918,0.00504982,2972.3,2971.1,2.888]
[1766524866125,0.00504982,2972.3,2971.1,6.254]
[1766524867924,3.366,2972.2,2971.1,6.254]
[1766524868918,3.366,2972.2,2970.2,0.00367739]
[1766524869120,0.92536944,2971.5,2970.3,3.366]
[1766524869321,4.263,2971.4,2970.3,3.366]
[1766524879228,4.263,2971.4,2970.3,4.29136944]
[1766524879429,4.263,2971.4,2970.3,3.366]
[1766524880043,4.263,2971.4,2970.2,0.00367739]
[1766524880345,4.263,2971.4,2970.3,3.366]
[1766524880540,4.263,2971.4,2970.2,0.00367739]
[1766524880744,4.263,2971.4,2970.4,3.366]
[1766524881543,4.263,2971.4,2970.2,0.00367739]
[1766524881739,45.063,2971.4,2970.4,3.367]
[1766524883746,45.063,2971.4,2970.2,0.00367739]
[1766524883954,45.063,2971.4,2970.3,3.367]
[1766524886339,45.063,2971.4,2970.2,0.00367739]
[1766524886545,45.063,2971.4,2970.3,3.367]
[1766524887941,0.00504982,2972.3,2970.3,3.53541]
[1766524888137,0.00504982,2972.3,2971.2,0.92536944]
[1766524888450,0.00504982,2972.3,2971.3,3.367]
[1766524889846,0.00504982,2972.3,2971.0,0.16837]
[1766524890045,0.00504982,2972.3,2971.4,5.885]
[1766524890247,0.00504982,2972.3,2971.5,3.367]
[1766524892255,3.367,2972.5,2971.5,3.367]
[1766524892546,3.366,2973.3,2971.6,1.09370944]
[1766524892947,44.166,2973.3,2971.6,1.09370944]
[1766524893153,44.166,2973.3,2971.6,0.16834]
[1766524893550,0.00504982,2972.7,2972.2,0.00504982]
[1766524893751,0.00504982,2972.7,2972.3,3.366]
[1766524893953,0.00504982,2972.7,2972.3,3.37006927]
[1766524895649,0.00504982,2972.7,2972.3,0.00406927]
[1766524895850,0.00504982,2972.7,2972.1,3.366]
[1766524896051,3.37104982,2972.7,2971.9,3.366]
[1766524896958,3.37104982,2972.7,2971.9,3.36880557]
[1766524897651,3.37104982,2972.7,2971.7,5.884]
[1766524897852,3.37104982,2972.7,2971.9,3.366]
[1766524898657,3.37104982,2972.7,2971.9,3.36836871]
[1766524899251,3.37104982,2972.7,2971.7,3.366]
[1766524900154,3.37104982,2972.7,2971.7,3.36943051]
[1766524903658,3.37104982,2972.7,2971.0,0.16837]
[1766524903857,3.37104982,2972.7,2971.1,3.667]
[1766524904059,3.37104982,2972.7,2971.0,0.16837]
[1766524904255,4.29641926,2972.7,2971.0,0.16837]
[1766524904764,4.29641926,2972.7,2971.1,3.365]
[1766524905965,0.92544254,2972.2,2971.1,3.365]
[1766524906165,3.365,2972.1,2971.1,3.365]
[1766524906959,3.365,2972.1,2971.0,0.92975328]
[1766524907158,3.365,2972.1,2971.1,3.365]
[1766524909266,3.365,2972.1,2971.2,0.92544254]
[1766524910061,0.92544254,2972.0,2971.0,5.88731074]
[1766524910267,0.92544254,2972.0,2971.1,3.366]
[1766524910460,3.365,2972.1,2971.0,0.00431074]
[1766524910660,3.365,2972.1,2971.1,3.366]
[1766524915670,0.92544254,2972.0,2971.1,3.366]
[1766524916275,0.92544254,2972.0,2971.0,0.00431074]
[1766524916476,0.92544254,2972.0,2971.1,3.366]
[1766524916972,0.92544254,2972.0,2971.0,0.00431074]
[1766524917180,0.92544254,2972.0,2971.1,3.366]
[1766524919274,0.92544254,2972.0,2971.0,0.00431074]
[1766524919475,0.92544254,2972.0,2971.1,3.366]
[1766524920475,0.92544254,2972.0,2971.0,0.00431074]
[1766524920681,0.92544254,2971.4,2970.6,3.366]
[1766524920873,0.92544254,2971.2,2970.6,3.366]
[1766524921375,3.37104982,2971.3,2970.6,3.366]
[1766524921774,0.92544254,2971.2,2970.1,0.16842]
[1766524921974,0.92544254,2970.8,2970.0,3.366]
[1766524922177,0.92544254,2970.4,2969.1,0.92544254]
[1766524922375,4.29144254,2970.4,2969.2,8.346]
[1766524922570,4.29144254,2970.4,2969.3,0.92544254]
[1766524922771,4.29144254,2970.4,2969.3,0.9282193]
[1766524923173,3.366,2970.4,2969.3,0.9282193]
[1766524923873,3.366,2970.4,2969.3,0.00277676]
[1766524924180,3.366,2970.4,2969.3,0.9282193]
[1766524924382,4.29144254,2970.4,2969.3,0.9282193]
[1766524924580,0.92544254,2970.2,2969.4,3.366]
[1766524924773,3.366,2970.1,2969.3,0.00277676]
[1766524925681,3.366,2970.1,2969.2,3.366]
[1766524925874,3.366,2970.1,2968.9,6.73744254]
[1766524926075,0.00504982,2969.8,2968.0,0.92544254]
[1766524926381,0.00504982,2969.8,2968.7,4.57844254]
[1766524926784,0.00504982,2969.8,2968.7,4.58108377]
[1766524927082,3.37104982,2969.8,2968.7,4.58108377]
[1766524927587,3.37104982,2969.8,2968.8,3.367]
[1766524929786,3.37104982,2969.8,2968.7,0.00264123]
[1766524929983,3.37104982,2969.8,2968.8,3.367]
[1766524931379,3.37104982,2969.8,2968.7,5.88664123]
[1766524931380,3.37104982,2969.8,2968.7,0.00264123]
[1766524931580,3.37104982,2969.8,2968.8,9.252]
[1766524932983,3.367,2970.1,2968.8,9.252]
[1766524933385,3.367,2970.1,2968.7,0.00264123]
[1766524933590,3.367,2970.1,2968.8,9.252]
[1766524933986,0.00504982,2969.7,2969.2,0.00504982]
[1766524934488,0.00504982,2969.7,2968.7,0.00264123]
[1766524934887,0.00504982,2969.7,2968.0,1.59853343]
[1766524934888,6.90104982,2969.7,2968.3,3.367]
[1766524935986,6.90104982,2969.7,2968.3,3.36954434]
[1766524936190,6.90104982,2969.7,2968.4,0.16852]
[1766524946097,6.90104982,2969.7,2968.3,4.79953777]
[1766524946300,3.368,2970.1,2968.7,1.42999343]
[1766524946491,3.368,2970.1,2968.8,17.675]
[1766524946695,3.368,2970.4,2969.1,1.42999343]
[1766524946896,3.368,2970.4,2969.2,3.368]
[1766524947199,0.00385041,2971.3,2969.8,1.42999343]
[1766524947392,3.368,2972.2,2970.3,1.42999343]
[1766524947596,0.00504982,2971.5,2970.7,1.42999343]
[1766524947802,0.00504982,2971.5,2970.8,3.37304982]
[1766524948105,0.00504982,2971.5,2970.9,3.368]
[1766524948504,0.00914765,2971.5,2970.9,3.37147505]
[1766524948803,0.00914765,2971.5,2970.9,0.00347505]
[1766524949005,0.00914765,2971.5,2971.0,3.368]
[1766524949502,3.368,2972.0,2971.0,3.368]
[1766524950508,0.00504982,2971.8,2971.0,3.368]
[1766524954403,0.00504982,2971.8,2971.1,3.367]
[1766524955600,0.00504982,2971.8,2970.9,0.00347505]
[1766524955808,0.00504982,2971.8,2971.0,3.367]
[1766524955809,3.367,2971.7,2971.0,3.367]
[1766524957298,3.367,2971.7,2970.9,0.00347505]
[1766524957503,3.367,2971.7,2971.0,3.17]
[1766524958498,3.367,2971.7,2970.9,0.00347505]
[1766524958709,3.367,2971.7,2971.0,3.367]
[1766524959504,0.00504982,2971.8,2971.0,3.367]
[1766524962707,2.693e-05,2972.0,2971.0,3.367]
[1766524962917,5.315,2972.4,2971.0,3.367]
[1766524963813,0.00504982,2972.0,2971.0,3.367]
[1766524964111,0.00745083,2972.0,2971.0,3.367]
[1766524964802,0.00745083,2972.0,2970.9,0.00347505]
[1766524965002,0.00745083,2972.0,2971.0,9.249]
[1766524965003,3.37345083,2972.0,2971.0,9.249]
[1766524965204,3.37345083,2972.0,2970.9,0.00347505]
[1766524965404,3.37345083,2972.0,2971.0,3.366]
[1766524966109,3.37345083,2972.0,2971.1,3.366]
[1766524969407,3.37345083,2972.0,2970.9,5.88547505]
[1766524969614,3.37345083,2972.0,2971.0,3.366]
[1766524970519,3.37345083,2972.0,2970.9,0.00347505]
[1766524970816,3.37345083,2972.0,2971.0,3.366]
[1766524971527,3.37345083,2972.0,2970.9,0.00347505]
[1766524972314,40.8,2971.9,2970.9,0.00347505]
[1766524973614,6.876,2971.8,2970.8,0.00504982]
[1766524973814,3.366,2971.7,2970.8,0.00504982]
[1766524974606,3.366,2971.7,2970.8,0.0093343]
[1766524977819,44.166,2971.7,2970.8,0.0093343]
[1766524980429,44.166,2971.7,2969.9,1.09418358]
[1766524980719,44.166,2971.7,2969.9,0.16843]
[1766524980914,44.166,2971.7,2970.0,3.366]
[1766524981620,44.166,2971.7,2970.6,0.00504982]
[1766524991129,6.963,2971.6,2970.6,0.00504982]
[1766524992032,6.963,2971.6,2970.6,4.982e-05]
[1766524993025,7.88875358,2971.6,2970.6,4.982e-05]